Cogmind - Beta 14 @@@ ROGUE MODE // 2024.08.10 @ 21:58:28 Player: A Moose Result: Destroyed by B8-JI5(R) with Subdweller Laser Performance ------------- Evolutions (0) 0 Regions Visited (2) 400 Robots Destroyed (14) 70 Value Destroyed (334) 334 Prototype IDs (0) 0 Alien Tech Used (0) 0 Bonus (0) 0 TOTAL SCORE: 804 Bonus ------- None Cogmind --------- Core Integrity 0/250 Matter 132/300 Energy 250/250 System Corruption 0% Temperature Cool (6) Movement Treading (240) Ox1 Location -10/Subcaves Parts ------- > --- POWER (1) -------- Ion Engine > --- PROPULSION (2) --- Light Treads Light Treads > --- UTILITY (2) ------ High-capacity Storage Unit Improved Terrain Scanner > --- WEAPON (2) ------- Barrage Gun Battle Cannon > --- INVENTORY (20) --- Light Ion Engine Light Ion Engine Makeshift Power Source Wheel Wheel Wheel Compact Wheel Compact Wheel Subdweller Monowheel Heat Sink Weight Redist. System EM Pulse Gun Mining Laser Mining Claw Peak State ------------ > --- POWER ------------ Ion Engine > --- PROPULSION ------- Wheel Compact Wheel > --- UTILITY ---------- High-capacity Storage Unit Improved Terrain Scanner > --- WEAPON ----------- Barrage Gun Battle Cannon > --- INVENTORY -------- Light Ion Engine Light Ion Engine Makeshift Power Source Light Treads Light Treads Wheel Wheel Compact Wheel Subdweller Monowheel Heat Sink Weight Redist. System EM Pulse Gun Mining Laser Mining Claw [Rating: 13] Favorites ----------- Power Ion Engine Engine Ion Engine Propulsion Compact Wheel Treads Light Treads Wheel Compact Wheel Utility High-capacity Storage Unit Device Improved Terrain Scanner Storage High-capacity Storage Unit Processor Targeting Computer Weapon Assault Rifle Energy Gun EM Pulse Gun Ballistic Gun Assault Rifle Ballistic Cannon Battle Cannon Special Weapon Mining Laser Slashing Weapon Mining Claw Build | -11 -10 -10 ------- Run | Yrd Mat Sub Slots Evolved . | . . . Power . | . . . Propulsion . | . . . Utility . | . . . Weapon . | . . . Parts Attached 28 | 7 8 13 Power 3 | 1 1 1 Engine 3 | 1 1 1 Core . | . . . Reactor . | . . . Propulsion 7 | 2 2 3 Treads 2 | . . 2 Leg . | . . . Wheel 5 | 2 2 1 Hover . | . . . Flight . | . . . Utility 4 | 1 2 1 Device 1 | . . 1 Storage 2 | 1 1 . Processor 1 | . 1 . Hackware . | . . . Protection . | . . . Artifact . | . . . Weapon 14 | 3 3 8 Energy Gun 2 | 1 . 1 Energy Cannon . | . . . Ballistic Gun 7 | 2 2 3 Ballistic Cannon 1 | . . 1 Launcher . | . . . Special Weapon 1 | . . 1 Impact Weapon . | . . . Slashing Weapon 3 | . 1 2 Piercing Weapon . | . . . Special Melee Weapon . | . . . Unidentified Prototypes . | . . . Parts Lost 4 | . . 4 Power 1 | . . 1 Propulsion 1 | . . 1 Utility . | . . . Weapon 2 | . . 2 Highest Loss Streak 3 | . . 3 To Critical Strikes . | . . . Average Slot Usage (%) 98 | . 97 99 Engine 13 | . 13 14 Wheel 26 | . 27 26 Device 7 | . . 13 Storage 14 | . 14 14 Processor 6 | . 13 . Ballistic Gun 17 | . 25 11 Ballistic Cannon 5 | . . 9 Slashing Weapon 2 | . 2 3 Peak Build Rating 13 | 6 8 13 Average Rating 9 | 4 7 11 On Entrance 4 | . 6 8 Naked Turns . | . . . Heaviest Build 52 | 14 49 52 Greatest Support 32 | 26 32 32 Greatest Overweight (x) 1 | . 1 1 Average Overweight (x) . | . . 1 Largest Inventory Capacity 20 | 8 20 20 Average Capacity 16 | 6 12 20 Most Carried 16 | 4 15 16 Average Carried 11 | 2 8 14 Final Capacity 20 | 8 20 20 Final Carried 15 | 4 15 14 Class Distribution -------------------- 100% | Mutant Dominant Class ---------------- Mutant | -10/Materials Mutant | -10/Subcaves Resources | -11 -10 -10 ----------- Run | Yrd Mat Sub Matter Collected 627 | 190 271 166 Remotely . | . . . Salvage Created 420 | . 271 149 Parts 27 | . 20 7 Haulers Intercepted . | . . . Recyclers Shooed 1 | . 1 . Parts Field Recycled . | . . . Retrieved Matter . | . . . Parts Self-Destructed 9 | . . 9 Prevented . | . . . Kills | -11 -10 -10 ------- Run | Yrd Mat Sub Combat Hostiles Destroyed 10 | . 5 5 Guns 8 | . 5 3 Cannons 2 | . . 2 Classes Destroyed 6 | . 5 1 Tunneler 2 | . 2 . Recycler 1 | . 1 . Operator 1 | . 1 . Swarmer 3 | . 3 . Grunt 2 | . 2 . Subdweller 5 | . . 5 Best Kill Streak 4 | . 4 2 Combat Bots Only 3 | . 3 2 Max Kills in Single Turn 2 | . 2 1 Gunslinging 1 | . 1 . Exploded . | . . . Melee . | . . . Uniques/NPCs Destroyed . | . . . Combat | -11 -10 -10 -------- Run | Yrd Mat Sub Hostile Shots Fired 71 | . 20 51 Missed 23 | . 3 20 Damage Taken 885 | . 176 709 Core 253 | . . 253 Absorbed by Shields . | . . . Core Remaining (%) 100 | 100 . . Volleys Fired 60 | . 20 40 Largest 2 | . 2 2 Hottest 100 | . 40 100 Shots Fired 97 | . 40 57 Gun 67 | . 40 27 Cannon 26 | . . 26 Launcher . | . . . Special 4 | . . 4 Kinetic 90 | . 40 50 Thermal 4 | . . 4 Explosive . | . . . Electromagnetic 3 | . . 3 Robot Hit Streak 17 | . 7 17 Robot Miss Streak 3 | . 2 3 Penetration Max . | . . . Secondary Targets 2 | . 2 . Max Gunslinging Chain 1 | . 1 . Shots Hit Robots 65 | . 28 37 Core Hits 23 | . 13 10 Critical Kills . | . . . Critical Parts Destroyed . | . . . Critical Strikes . | . . . Melee Attacks 12 | . 10 2 Impact . | . . . Slashing 12 | . 10 2 Piercing . | . . . Sneak Attacks 3 | . 3 . Combat Hostiles . | . . . Follow-up Attacks . | . . . Damage Inflicted 1200 | . 492 708 Guns 619 | . 346 273 Cannons 435 | . . 435 Explosions . | . . . Melee 146 | . 146 . Ramming . | . . . Kinetic 1044 | . 346 698 Thermal . | . . . Explosive . | . . . Electromagnetic 10 | . . 10 Impact . | . . . Slashing 146 | . 146 . Piercing . | . . . Highest Corruption . | . . . Average Corruption . | . . . Corruption Purged . | . . . Corruption Blocked . | . . . Overload Shots . | . . . Overflow Damage 18 | . 18 . Projectiles . | . . . Explosions . | . . . Melee 18 | . 18 . Knockbacks 3 | . . 3 Impact . | . . . Kinetic 3 | . . 3 Secondary . | . . . Self-Inflicted Damage . | . . . Shots . | . . . Rammed . | . . . Targets Rammed . | . . . Kicked . | . . . Crushed . | . . . Highest Temperature . | . . . Average Temperature . | . . . Received Heat Transfer 192 | . 72 120 Siege Activations . | . . . Robots Corrupted . | . . . Combat Hostiles . | . . . Parts Fried . | . . . Impact Corruptions . | . . . Robots Melted . | . . . Combat Hostiles . | . . . Parts Melted . | . . . Heat Transferred . | . . . Parts Sabotaged . | . . . Parts Stolen . | . . . Parts Stripped . | . . . Power Chain Reactions . | . . . Alert | -11 -10 -10 ------- Run | Yrd Mat Sub Peak Influence 140 | . 140 . Initial . | . . . Average 48 | . 53 . Maximum Alert Level . | . . . Low Security (%) 100 | 100 100 . Level 1 . | . . . Level 2 . | . . . Level 3 . | . . . Level 4 . | . . . Level 5 . | . . . High Security . | . . . Max Security . | . . . Squads Dispatched 2 | . 2 . Investigation 1 | . 1 . Extermination . | . . . Reinforcement 1 | . 1 . Assault . | . . . Garrison . | . . . Intercept . | . . . Searches Triggered . | . . . Construction Impeded . | . . . Haulers Reinforced . | . . . Active Scanning Responses . | . . . Cargo Convoy Interrupts . | . . . Stealth | -11 -10 -10 --------- Run | Yrd Mat Sub Distress Signals . | . . . Communications Jammed . | . . . Distress Signals . | . . . Times Spotted 17 | . 10 7 Peak Tracking Total 4 | . 4 4 Tactical Retreats . | . . . Traps | -11 -10 -10 ------- Run | Yrd Mat Sub Traps Triggered 3 | . 3 . Indirectly . | . . . Trap Hack Attempts . | . . . Triggered . | . . . Disarmed . | . . . Reprogrammed . | . . . Reused . | . . . Traps Extracted . | . . . Installed . | . . . Triggered 3 | . . 3 Machines | -11 -10 -10 ---------- Run | Yrd Mat Sub Machines Disabled . | . . . Max in Single Turn . | . . . Machines Repaired . | . . . Machines Dismantled . | . . . Machines Sabotaged . | . . . Overloaded Fab Kills . | . . . Hacking | -11 -10 -10 --------- Run | Yrd Mat Sub Machines Accessed 3 | . 3 . Terminals 3 | . 3 . Fabricators . | . . . Repair Stations . | . . . Recycling Units . | . . . Scanalyzers . | . . . Garrison Access . | . . . Total Hacks 8 | . 8 . Successful 4 | . 4 . Failed 4 | . 4 . Catastrophic . | . . . Database Lockouts . | . . . Manual 2 | . 2 . Terminals 8 | . 8 . Fabricators . | . . . Repair Stations . | . . . Recycling Units . | . . . Scanalyzers . | . . . Garrison Access . | . . . Terminal Hacks 2 | . 2 . Unreport Threat 1 | . 1 . Locate Traps 1 | . 1 . Fabricator Hacks . | . . . Repair Station Hacks . | . . . Recycling Unit Hacks . | . . . Scanalyzer . | . . . Garrison Access Hacks . | . . . Unauthorized Hacks 2 | . 2 . Terminals 2 | . 2 . Botnet 2 | . 2 . Fabricators . | . . . Repair Stations . | . . . Recycling Units . | . . . Scanalyzers . | . . . Garrison Access . | . . . Data Cores Recovered 1 | . 1 . Used 1 | . 1 . Hacking Detections 2 | . 2 . Full Trace Events . | . . . Feedback Events . | . . . Feedback Blocked . | . . . Robot Schematics Acquired . | . . . Robots Built . | . . . Authchips . | . . . Time . | . . . Total Robot Build Rating . | . . . Part Schematics Acquired . | . . . Parts Built . | . . . Authchips . | . . . Time . | . . . Total Part Build Rating . | . . . Parts Repaired . | . . . Time . | . . . Parts Recycled . | . . . Recycled Matter . | . . . Retrieved Matter . | . . . Retrieved Components . | . . . Parts Scanalyzed . | . . . Part Schematics Acquired . | . . . Parts Damaged . | . . . Bothacking | -11 -10 -10 ------------ Run | Yrd Mat Sub Used RIF Installer . | . . . Robots Hacked . | . . . Non-combat . | . . . Combat . | . . . Robot Hacks Applied . | . . . Relay Couplers Released . | . . . Fabnet Peak Effective % . | . . . Robots Rewired . | . . . Allies Hacked . | . . . Hacks Repelled . | . . . Allies | -11 -10 -10 -------- Run | Yrd Mat Sub Total Allies . | . . . Largest Group . | . . . Highest-Rated Group . | . . . Highest-Rated Ally . | . . . Total Orders . | . . . Ally Attacks . | . . . Total Damage . | . . . Kills . | . . . Allies Corrupted . | . . . Allies Melted . | . . . Intel | -11 -10 -10 ------- Run | Yrd Mat Sub Robot Analysis Total . | . . . Derelict Logs Recovered . | . . . Drone Launches . | . . . Drone Recoveries . | . . . Exploration | -11 -10 -10 ------------- Run | Yrd Mat Sub Turns Passed 1335 | 64 582 689 Spaces Moved 872 | 55 365 452 Core 10 | 6 4 . Treads . | . . . Legs . | . . . Wheels 862 | 49 361 452 Hover . | . . . Flight . | . . . Fastest Speed 50 | 50 90 105 Average Speed 105 | 85 102 109 Slowest Speed 115 | 90 115 115 Overloaded Moves . | . . . Propulsion Burnouts . | . . . Robots Hopped . | . . . Cave-ins Triggered . | . . . Exploration Rate (%) 26 | 4 61 15 Regions Visited 2 Branch Regions 1 Pre-discovered Areas . | . . . Known Exits Taken . | . . . Unknown Exits Taken 2 | 1 1 . Scrap Searched . | . . . Spaces Dug . | . . . Terrain Destroyed . | . . . Melee . | . . . Projectile . | . . . AOE . | . . . Terrain Rammed . | . . . Walls Destroyed . | . . . Machines Disabled . | . . . Actions | -11 -10 -10 --------- Run | Yrd Mat Sub Total 1159 | 71 513 575 Wait 156 | . 92 64 Move 870 | 54 364 452 Hop . | . . . Pick Up 30 | 10 16 4 Fast Attach 3 | . 3 . Attach 13 | 6 3 4 Detach . | . . . Swap 12 | 1 2 9 Drop 3 | . 3 . Fire 60 | . 20 40 Melee 12 | . 10 2 Ram . | . . . Kick . | . . . Crush . | . . . Escape Stasis . | . . . Rewire . | . . . Trap . | . . . Miscellaneous . | . . . Route ------- -11/Scrapyard -10/Materials (discovered 5 exits: [*Mat x2] / [*Min x2] / [*Sub]) -10/Subcaves (discovered 1 exit: [*Mat]) History --------- Turn | Location | Event 21 | -11/Scrapyard | Discovered new exit (range 15) 65 | -11/Scrapyard | Entered Materials 113 | -10/Materials | Discovered new exit (range 6) 231 | -10/Materials | Discovered new exit (range 16) 317 | -10/Materials | Build established: Mutant 411 | -10/Materials | Discovered new exit (range 9) 487 | -10/Materials | Discovered new exit (range 16) 608 | -10/Materials | Discovered new exit (range 3) 647 | -10/Materials | Entered Subcaves 771 | -10/Subcaves | Discovered new exit (range 11) 1026 | -10/Subcaves | Lost 3 parts (1p1n1w) 1064 | -10/Subcaves | Core integrity fell below 50% 1101 | -10/Subcaves | Shifting Twisted Machinery released Barrage Gun 1330 | -10/Subcaves | Core integrity fell below 20% 1336 | -10/Subcaves | Destroyed by B8-JI5(R) with Subdweller Laser Last Messages --------------- Acquired 5 matter. Acquired 3 matter. Acquired 6 matter. Acquired 9 matter. Acquired 10 matter. HT-EU2(R) destroyed. Acquired 45 matter. Acquired 14 matter. Subatomizers dissect the Sub. Monowheel. Barrage Gun falls loose from the Twisted Machinery. Acquired Barrage Gun. Subatomizers dissect the Sub. Monowheel. Acquired 7 matter. 0F-H2V(R) emerges from concealment. IH-9QE(R) emerges from concealment. O4-GQ6(R) destroyed. 0F-H2V(R) knocked back. 0F-H2V(R) destroyed. Subatomizers dissect the Sub. Optics. Map ----- +----------------------------------------------------+ | ?????????????????????????????????????????????????? | | ?????????????????????????????????????????????????? | | ??????????????#?#??#?????????????????????????????? | | ??######???????????????#?????????????????????????? | | ?## ##????????#???#???????????????????????????? | | ?# ##???????????????????????????????????????? | | ## ######?#????????????????????????????????? | | ## ###????????????????????????????????? | | " ##???????????????????????????????? | | ## " #???????????????????????????????? | | #### ## " ##???????????????????????????????? | | ##??## # " ##??????#????????????????????????? | | #???"# """" ##??????????????????????????????? | | #"???#"##"" ##?????????#?#??????????????????? | | ##??## ##"" #?###?????????????#????????????? | | #### " " ##????#??????#?????????????????? | | # #???????#??????????#??????????? | | ######## ### #?????????????????????????????? | | #?## # ##??#?#???????????????#????????? | | ####?# ## #???#?????######?????????#????? | | ????## ### ####?####??# ###????????????? | | ##???# ###""" #?# ##?# ##???????????? | | ????### """"" #?## ### #???????????? | | ??????## ##?# ##???????????? | | ????#??#### ##### ### ##????????????? | | ??????#???###???# @ ###????? ???????? | | ????????????? ??## ### ##????? ????????? | | ????????????? ???### !#?## ##???????????????? | | ??????????#????????## &%&#?####????????????????? | | ???#??????????? ????# % #??#?????????????????? | | ?????????#???????#? R #?#????????????????? | | ?????????????????# %! #???????? ?????????? | | ????????????#????# R ???? ????????????? | | ???????????????? ????????????????? | | ?????????????? % ???????????????? | | ?????????????? ### ??????????????? | | ?????????????? #?? % ?#????????????? | | ?????????????? ?? ???????????????? | | ???????????????? ???#% ?????????????????? | | ?????????????????? ????# ?????????????????? | | ???????????????????? ????? ???????????????????? | | ?????????????????????????????????????????????????? | | #????????????????????????????????????????????????? | | ?????????????????????????????????????????????????? | | ?????????????????????????????????????????????????? | | #?#??????????????????????????????????????????????? | | ?????????????????????????????????????????????????? | | ?#????#??????????????????????????????????????????? | | ???#?????????????????????????????????????????????? | | ??#??????????????????????????????????????????????? | +----------------------------------------------------+ Best States ------------- Heat Dissipation 25 Energy Generation 10 Energy Capacity 250 Matter Stores 300 Matter Capacity 300 Sight Range 16 Terrain Scan Range 16 Terrain Scan Density 10 Evasion (%) 42 Targeting Accuracy 5 Recoil Reduction 2 Item Schematics ----------------- None Robot Schematics ------------------ None Fabricated ------------ Nothing Alien Tech Used ----------------- None Achievements -------------- None Challenges ------------ None Game ------ Seed AntimatterSmartbombMask Manual? 0 Play Time 00:12:25 Cumulative 133.7 hours Start 2024.08.10 @ 21:46:30 End 2024.08.10 @ 21:58:28 Sessions 1 Manual Loads 0 Difficulty Rogue Special Mode None Game No. 129 Rogue 120 Adventurer 9 Explorer 0 Win Type - Total 0 Types 0/0/0/0/0/0/0/0/0 Lore% 36 Gallery% 61 Achievement% 48 Wizard Run 0 Options --------- Layout 1 ASCII 0 Keyboard 0 Movement Numpad Keybinds 0 Fullscreen 1 Font 24/Smallcaps Map View 50x35 Zoom Use 0% Tactical HUD 0 Map Filters NONE Filters NONE Steam 1 RUN: 292c5b16-5e8b-4739-9c2a-142da87f077a